[Event "NED-ch U20 Girls 2018"]
[Site "Assen"]
[Date "2018.05.04"]
[Round "6"]
[White "Adema, Marrit"]
[Black "Duson, Robin"]
[Result "0-1"]
[ECO "E48"]
[WhiteElo "1497"]
[BlackElo "1920"]
[Annotator "NA"]
[PlyCount "44"]
[EventDate "2018.??.??"]
[EventType "swiss"]
[EventCountry "NED"]
[SourceTitle "playchess.com"]
[Source "ChessBase"]
[SourceQuality "1"]
[TimeControl "5400+30"]

1. d4 {[%emt 0:00:00]} Nf6 {[%emt 0:00:12]} 2. c4 {[%emt 0:00:00]} e6 {[%emt 0:00:05]} 3. Nc3 {[%emt 0:00:00]} Bb4 {[%emt 0:00:15]} 4. e3 {[%emt 0:00:00]} O-O {[%emt 0:00:21]} 5. Bd3 {[%emt 0:00:00]} d5 {[%emt 0:00:21]} 6. Nge2 {[%emt 0:00:13]} dxc4 {[%emt 0:02:08]} 7. Bxc4 {[%emt 0:00:22]} e5 {[%emt 0:00:42]} 8. Qc2 {[%emt 0:05:22] E48: Nimzo-Indian: Rubinstein: 5 Bd3 d5 including 6 Ne2, but excluding 6 a3} exd4 $146 {[%emt 0:05:52]} ({Predecessor:} 8... Nc6 $5 {[%cal Re5d4]} 9. a3 exd4 10. axb4 dxc3 11. b5 Ne5 12. Qxc3 Be6 13. Qxe5 Bxc4 14. Nd4 Nd7 15. Qf5 Re8 {0-1 (49) Renet,O (2494)-Adams,M (2742) France 2002}) 9. Nxd4 {[%emt 0:01:21]} c5 {[%emt 0:05:12]} 10. Nf3 {[%emt 0:04:50]} Nc6 {[%emt 0:04:08]} 11. O-O {[%emt 0:03:17]} Bxc3 {[%emt 0:08:39]} 12. Qxc3 {[%emt 0:02:12]} Bf5 {[%emt 0:03:14]} (12... Ne4 $15 13. Qb3 Qe7) 13. a3 {[%emt 0:18:57]} Ne4 {[%emt 0:03:33]} 14. Qe1 {[%emt 0:02:30]} Na5 {[%emt 0:08:20]} 15. Ba2 {[%emt 0:01:46]} Qb6 {[%emt 0:06:48]} 16. b4 {[%emt 0:06:20]} Nc6 {[%emt 0:02:53]} 17. Rb1 {[%emt 0:02:41]} cxb4 {[%emt 0:00:41]} 18. axb4 {[%emt 0:00:24]} Nd6 {[%emt 0:01:34]} 19. Rb2 {[%emt 0:02:16]} Bd3 $19 {[%emt 0:03:46]} 20. Qc3 {[%emt 0:07:32]} Bxf1 {[%emt 0:01:00]} 21. Kxf1 {[%emt 0:00:06]} Rac8 {[%emt 0:03:31]} 22. Qd3 {[%emt 0:03:00]} Qb5 {[%emt 0:02:16]} 0-1

[Event "NED-ch U20 Girls 2018"]
[Site "Assen"]
[Date "2018.05.04"]
[Round "6"]
[White "Monteny, Pascalle"]
[Black "Tiggelman, Laura"]
[Result "0-1"]
[ECO "B26"]
[WhiteElo "1446"]
[BlackElo "1536"]
[Annotator "NA"]
[PlyCount "108"]
[EventDate "2018.??.??"]
[EventType "swiss"]
[EventCountry "NED"]
[SourceTitle "playchess.com"]
[Source "ChessBase"]
[SourceQuality "1"]
[TimeControl "5400+30"]

1. e4 {[%emt 0:00:00]} c5 {[%emt 0:00:04]} 2. Nc3 {[%emt 0:00:00]} Nc6 {[%emt 0:00:11]} 3. g3 {[%emt 0:00:00]} g6 {[%emt 0:00:13]} 4. Bg2 {[%emt 0:00:07]} Bg7 {[%emt 0:00:08]} 5. d3 {[%emt 0:00:11]} e6 {[%emt 0:00:19]} 6. Be3 {[%emt 0:00:20]} d6 {[%emt 0:00:42]} 7. Qd2 {[%emt 0:01:00]} Nd4 {[%emt 0:01:40]} 8. Nge2 {[%emt 0:00:41]} Nxe2 {[%emt 0:11:17]} 9. Qxe2 {[%emt 0:00:50]} Ne7 {[%emt 0:02:42]} 10. O-O {[%emt 0:04:59]} O-O {[%emt 0:00:33]} 11. f4 {[%emt 0:03:38]} b6 {[%emt 0:05:29]} 12. g4 {[%emt 0:10:49]} d5 {[%emt 0:15:42]} 13. exd5 {[%emt 0:12:41]} Nxd5 {[%emt 0:02:26]} 14. Nxd5 {[%emt 0:06:40]} exd5 {[%emt 0:00:12]} 15. c3 {[%emt 0:02:26]} Rb8 {[%emt 0:04:06]} 16. Bd2 {[%emt 0:06:36]} Re8 {[%emt 0:04:01]} 17. Qf3 {[%emt 0:05:20]} Bb7 {[%emt 0:01:38]} 18. Qf2 {[%emt 0:01:15]} d4 {[%emt 0:01:58]} 19. c4 {[%emt 0:01:41]} Bxg2 {[%emt 0:04:11]} 20. Qxg2 {[%emt 0:00:13]} Qd7 {[%emt 0:05:08]} 21. Rae1 {[%emt 0:15:30]} b5 {[%emt 0:19:02]} 22. b3 {[%emt 0:17:34]} bxc4 {[%emt 0:01:03]} 23. dxc4 {[%emt 0:00:15]} Rxe1 {[%emt 0:10:23]} 24. Rxe1 {[%emt 0:01:58]} Re8 {[%emt 0:01:02]} 25. Kf1 {[%emt 0:02:01]} Rxe1+ {[%emt 0:02:20]} 26. Kxe1 {[%emt 0:00:13]} Qe6+ {[%emt 0:01:02]} 27. Qe2 {[%emt 0:02:08]} Qc6 {[%emt 0:01:41]} 28. h3 {[%emt 0:01:38]} Qh1+ {[%emt 0:00:55]} 29. Qf1 {[%emt 0:00:10]} Qe4+ {[%emt 0:00:39]} 30. Qe2 {[%emt 0:02:21]} Qb1+ {[%emt 0:00:11]} 31. Kf2 {[%emt 0:01:09]} Qxa2 {[%emt 0:00:13]} 32. Qd3 {[%emt 0:00:41]} a5 {[%emt 0:01:24]} 33. Kf3 {[%emt 0:00:41]} Qa3 {[%emt 0:00:24]} 34. Ke2 {[%emt 0:00:26]} a4 {[%emt 0:01:09]} 35. bxa4 {[%emt 0:00:06]} Qxa4 {[%emt 0:00:03]} 36. f5 {[%emt 0:00:54]} Qa6 {[%emt 0:00:45]} 37. Qb3 {[%emt 0:00:37]} Qa8 {[%emt 0:01:10]} 38. Kd1 {[%emt 0:00:34]} gxf5 {[%emt 0:00:50]} 39. gxf5 {[%emt 0:00:12]} Qh1+ {[%emt 0:00:45]} 40. Be1 {[%emt 0:00:37]} Qe4 {[%emt 0:00:16]} 41. Qb8+ {[%emt 0:00:00]} Bf8 {[%emt 0:00:00]} 42. Qg3+ {[%emt 0:00:00]} Kh8 {[%emt 0:00:00]} 43. Qg5 {[%emt 0:00:00]} Qd3+ {[%emt 0:00:00]} 44. Bd2 {[%emt 0:00:00]} Qf1+ {[%emt 0:00:00]} 45. Be1 {[%emt 0:01:00]} Qf3+ {[%emt 0:00:00]} 46. Kd2 {[%emt 0:01:13]} Qc3+ {[%emt 0:00:00]} 47. Kd1 {[%emt 0:00:26]} Qa1+ {[%emt 0:00:00]} 48. Ke2 {[%emt 0:01:30]} Qa2+ {[%emt 0:00:00]} 49. Kd1 {[%emt 0:00:10]} Qb3+ {[%emt 0:00:00]} 50. Kd2 {[%emt 0:00:13]} Qb2+ {[%emt 0:00:00]} 51. Kd1 {[%emt 0:00:24]} d3 {[%emt 0:00:00]} 52. Bd2 {[%emt 0:01:13]} Qb1+ {[%emt 0:00:00]} 53. Bc1 {[%emt 0:00:05]} Qc2+ {[%emt 0:00:00]} 54. Ke1 {[%emt 0:00:22]} Qe2# {[%emt 0:00:00]} 0-1

[Event "NED-ch U20 Girls 2018"]
[Site "Assen"]
[Date "2018.05.05"]
[Round "7"]
[White "Duson, Robin"]
[Black "Naber, Quirine"]
[Result "1-0"]
[ECO "C54"]
[WhiteElo "1920"]
[BlackElo "1775"]
[Annotator "NA RC"]
[PlyCount "67"]
[EventDate "2018.??.??"]
[EventType "swiss"]
[EventCountry "NED"]
[SourceTitle "playchess.com"]
[Source "ChessBase"]
[SourceQuality "1"]
[TimeControl "5400+30"]

{[%evp 8,67,13,32767,32767,11,32767,25,32767,32767,50,51,69,45,65,43,41,30,45,36,53,68,70,59,104,103,166,100,139,143,223,173,204,237,500,550,493,356,349,352,337,295,1149,32767,32767,32767,32767,32767,195,32767,385,340,320,358,583,821,29997,823,876,552,29992,11560]} 1. e4 {[%emt 0:00:00]} e5 {[%emt 0:00:04]} 2. Nf3 {[%emt 0:00:00]} Nc6 {[%emt 0:00:04]} 3. Bc4 {[%emt 0:00:00]} Bc5 {[%emt 0:00:12]} 4. c3 {[%emt 0:00:20]} Nf6 {[%emt 0:00:13]} 5. d3 {[%emt 0:00:15]} d6 {[%emt 0:00:20]} 6. O-O {[%emt 0:00:32]} Bg4 {[%emt 0:00:58]} 7. Nbd2 {[%emt 0:01:11]} Qe7 {[%emt 0:00:43] C54: Giuoco Piano: 4 c3 Nf6, main lines with 5 d4 and 5 d3} (7... Qd7 8. a4 a6 9. a5 Ba7 10. Re1 Ne7 11. h3 Be6 12. d4 Ng6 13. Bf1 O-O 14. Kh2 Rae8 15. g3 {0-1 (29) Jaracz,P (2474)-Ernst,S (2540) Germany 2016}) 8. b4 {[%emt 0:04:51]} Bb6 {[%emt 0:00:08]} 9. h3 {[%emt 0:05:52]} Bd7 $146 {[%emt 0:01:41]} ({Predecessor:} 9... Be6 10. Re1 O-O 11. Bb3 a5 12. b5 Nb8 13. a4 Nbd7 14. Nf1 Nc5 15. Bc2 {0-1 (25) Ingunza Curro,A (1743)-Serrano Garcia,V (1841) Madrid 2017}) 10. Re1 {[%emt 0:04:06]} O-O {[%emt 0:03:13]} 11. Nf1 {[%emt 0:03:27]} Be6 {[%emt 0:02:22]} 12. Bb3 {[%emt 0:02:49]} h6 {[%emt 0:02:31]} 13. Ng3 {[%emt 0:01:53]} a5 {[%emt 0:07:57]} 14. b5 {[%emt 0:04:57]} Na7 {[%emt 0:00:21]} 15. a4 {[%emt 0:01:01]} c6 {[%emt 0:00:29]} 16. bxc6 {[%emt 0:05:12]} Nxc6 {[%emt 0:00:52]} 17. Nh4 {[%emt 0:02:13]} Qc7 {[%emt 0:04:10]} 18. Rb1 {[%emt 0:04:41]} Ba7 {[%emt 0:01:18]} (18... Ne7 $16) 19. Qf3 {[%emt 0:02:48]} Ne7 {[%emt 0:01:07] [#]} 20. Bxh6 $1 {[%emt 0:02:34]} Qxc3 $2 {[%emt 0:04:26]} (20... Bxb3 {is a better chance.} 21. Ngf5 (21. Rxb3 Ng6 $18) 21... Ne8) 21. Rec1 {[%emt 0:03:00]} Qd4 {[%emt 0:01:36]} 22. Rc7 {[%emt 0:03:37]} Bxb3 {[%emt 0:06:10]} 23. Rxb3 {[%emt 0:01:14]} Nc6 {[%emt 0:01:39]} 24. Rbxb7 {[%emt 0:02:13]} Nd8 $2 {[%emt 0:00:26]} (24... Qa1+ 25. Kh2 Nd4) 25. Be3 {[%emt 0:04:15]} Qa1+ {[%emt 0:01:36]} 26. Rc1 {[%emt 0:00:44]} Qa3 {[%emt 0:01:14]} 27. Re7 {[%emt 0:15:28]} Bxe3 {[%emt 0:10:22]} 28. Qxe3 {[%emt 0:00:15]} Qxa4 $2 {[%emt 0:00:22]} (28... Ne6 29. Ngf5 Rae8) 29. Ngf5 {[%emt 0:01:53]} Ne6 {[%emt 0:01:00] [#]} 30. Nh6+ $1 {[%emt 0:04:37]} gxh6 $2 {[%emt 0:12:17]} (30... Kh7 {was necessary.} 31. N4f5 (31. Rxf7 Rxf7 32. Nxf7 Qd7 $14) 31... Rae8) 31. Qxh6 {[%emt 0:00:40]} Nxe4 {[%emt 0:07:54]} 32. dxe4 {[%emt 0:06:41]} (32. Ng6 $142 Qd1+ 33. Rxd1 fxg6 34. Qh7#) 32... Qxe4 {[%emt 0:00:04]} 33. Rxe6 {[%emt 0:02:17]} fxe6 {[%emt 0:00:15]} 34. Ng6 $18 {[%emt 0:01:23]} (34. Qg5+ $142 Kh8 35. Rc7 Qb1+ 36. Kh2 Rf7 37. Rxf7 Qh7 38. Qf6+ Kg8 39. Rxh7 Kxh7 40. Qf7+ Kh8 41. Ng6#) 1-0

[Event "NED-ch U20 Girls 2018"]
[Site "Assen"]
[Date "2018.05.05"]
[Round "7"]
[White "Den Dunnen, Lola"]
[Black "Verhoeff, Timardi"]
[Result "1-0"]
[ECO "A84"]
[WhiteElo "1912"]
[BlackElo "1911"]
[Annotator "NA"]
[PlyCount "97"]
[EventDate "2018.??.??"]
[EventType "swiss"]
[EventCountry "NED"]
[SourceTitle "playchess.com"]
[Source "ChessBase"]
[SourceQuality "1"]
[TimeControl "5400+30"]

{[%evp 9,95,49,39,41,41,11,16,16,12,17,24,20,10,12,14,22,25,32767,32767,18,27,0,12,-32,0,13,22,-12,-26,-20,26,12,10,0,50,-35,-25,-78,-67,-72,32767,32767,-63,-77,-71,-220,-225,-213,-136,-150,-158,-154,-101,-174,-127,-177,-103,-119,-132,-92,-130,-114,-88,-93,32767,32767,32767,32767,32767,32767,32767,32767,32767,32767,32767,32767,32767,32767,32767,32767,32767,32767,32767,32767,533,602,796,847]} 1. d4 {[%emt 0:00:00]} e6 {[%emt 0:00:04]} 2. c4 {[%emt 0:00:00]} f5 {[%emt 0:00:06]} 3. Nc3 {[%emt 0:01:36]} Nf6 {[%emt 0:00:32]} 4. Nf3 {[%emt 0:04:34]} d5 {[%emt 0:01:18]} 5. cxd5 {[%emt 0:05:05]} exd5 {[%emt 0:00:10]} 6. Bg5 {[%emt 0:02:55]} Be7 {[%emt 0:02:18] A84: Dutch Defence: 2 c4 Miscellaneous} 7. Ne5 {[%emt 0:06:45]} c6 {[%emt 0:12:36]} 8. e3 {[%emt 0:02:06]} O-O {[%emt 0:01:20]} 9. Bd3 {[%emt 0:08:07]} Ne4 {[%emt 0:08:00]} 10. Bxe7 {[%emt 0:01:07]} Qxe7 {[%emt 0:00:06]} 11. O-O {[%emt 0:02:32]} Nd7 {[%emt 0:02:56]} 12. f4 {[%emt 0:05:17]} Rf6 {[%emt 0:31:57]} 13. Bxe4 {[%emt 0:07:27]} fxe4 {[%emt 0:13:02]} 14. Qe2 $146 {[%emt 0:03:50]} ({Predecessor:} 14. Qb3) 14... Nxe5 {[%emt 0:05:53]} 15. dxe5 {[%emt 0:02:37]} Rh6 {[%emt 0:01:00]} 16. Qf2 {[%emt 0:03:43]} Bd7 {[%emt 0:01:29]} 17. Rab1 {[%emt 0:10:36]} Rf8 {[%emt 0:02:38]} 18. Qd2 {[%emt 0:01:50]} Qh4 {[%emt 0:02:48]} 19. g3 $1 {[%emt 0:00:54]} Qh5 {[%emt 0:00:21]} ({Black should play} 19... Qh3 $15) 20. Rf2 {[%emt 0:07:00]} Bg4 {[%emt 0:02:00]} 21. Ne2 {[%emt 0:02:53]} Qh3 {[%emt 0:02:26]} 22. Qe1 {[%emt 0:04:51]} ({Better is} 22. Nd4 $14) 22... Bf3 {[%emt 0:00:41]} 23. Qf1 {[%emt 0:00:52] [#]} Qg4 $1 {[%emt 0:00:11]} 24. Rxf3 {[%emt 0:03:03]} Qxf3 {[%emt 0:00:41]} 25. Qxf3 {[%emt 0:01:06]} exf3 {[%emt 0:00:02]} 26. Nd4 {[%emt 0:00:24] [#]} f2+ $1 {[%emt 0:00:30]} 27. Kxf2 {[%emt 0:00:06]} (27. Kg2 $17) 27... Rxh2+ {[%emt 0:00:24]} 28. Kf3 {[%emt 0:00:09]} c5 {[%emt 0:01:55]} 29. Ne6 {[%emt 0:01:25]} Rc8 {[%emt 0:00:13]} 30. f5 {[%emt 0:02:06]} c4 {[%emt 0:01:44]} 31. Nd4 {[%emt 0:01:49]} (31. g4 $17) 31... a6 {[%emt 0:01:05]} 32. a4 {[%emt 0:01:14]} (32. e6 $17 {was called for.}) 32... g6 {[%emt 0:00:20]} 33. g4 {[%emt 0:01:40] [#]} Rh3+ $1 {[%emt 0:00:19]} 34. Kf4 {[%emt 0:00:13]} Kf7 {[%emt 0:02:04]} 35. e6+ {[%emt 0:04:04]} Ke7 {[%emt 0:00:28]} 36. Re1 {[%emt 0:01:30]} Rg8 {[%emt 0:01:36]} 37. Ke5 {[%emt 0:00:56]} gxf5 {[%emt 0:01:11]} 38. gxf5 {[%emt 0:00:40]} Rh5 {[%emt 0:01:06]} 39. Kxd5 {[%emt 0:00:35]} Rd8+ {[%emt 0:01:11]} 40. Ke5 {[%emt 0:00:23]} Rg8 {[%emt 0:00:36]} 41. Rc1 {[%emt 0:00:00]} Rc8 {[%emt 0:00:00]} 42. Rg1 {[%emt 0:00:00]} Rc5+ {[%emt 0:00:00]} 43. Kf4 {[%emt 0:00:00]} Kf6 {[%emt 0:00:00]} 44. e4 {[%emt 0:00:00]} Rh4+ {[%emt 0:00:00]} 45. Rg4 {[%emt 0:00:00]} Rh2 {[%emt 0:00:00]} 46. Nf3 {[%emt 0:00:00]} Rf2 {[%emt 0:00:00]} 47. Rg8 {[%emt 0:00:00]} b5 {[%emt 0:02:18]} 48. Rf8+ $18 {[%emt 0:00:00]} Kg7 {[%emt 0:00:30]} 49. e7 {[%emt 0:00:00]} 1-0

[Event "NED-ch U20 Girls 2018"]
[Site "Assen"]
[Date "2018.05.05"]
[Round "7"]
[White "Martinez, Anna"]
[Black "Warnaar, Alisha"]
[Result "1/2-1/2"]
[ECO "C00"]
[WhiteElo "1795"]
[BlackElo "1647"]
[Annotator "NA RC"]
[PlyCount "49"]
[EventDate "2018.??.??"]
[EventType "swiss"]
[EventCountry "NED"]
[SourceTitle "playchess.com"]
[Source "ChessBase"]
[SourceQuality "1"]
[TimeControl "5400+30"]

1. e4 {[%emt 0:01:28]} e6 {[%emt 0:00:16]} 2. d3 {[%emt 0:03:10]} d5 {[%emt 0:00:26]} 3. Qe2 {[%emt 0:00:09]} Nc6 {[%emt 0:05:30]} 4. Nf3 {[%emt 0:00:32]} dxe4 {[%emt 0:08:36]} 5. dxe4 {[%emt 0:00:28]} e5 {[%emt 0:00:51]} 6. h3 {[%emt 0:09:30]} Bc5 {[%emt 0:05:05]} 7. Nc3 {[%emt 0:05:05]} f6 {[%emt 0:08:01]} 8. Bd2 {[%emt 0:02:50]} Be6 {[%emt 0:01:26]} 9. O-O-O {[%emt 0:10:16]} Qe7 {[%emt 0:03:23]} 10. Be3 {[%emt 0:04:11]} Bxe3+ {[%emt 0:07:26]} 11. Qxe3 {[%emt 0:00:13]} Qf7 {[%emt 0:00:16]} 12. a3 {[%emt 0:17:39]} Nge7 {[%emt 0:02:25]} 13. g4 {[%emt 0:13:05]} h6 {[%emt 0:06:17]} 14. Rg1 {[%emt 0:02:22]} Rd8 {[%emt 0:04:35]} 15. Bb5 {[%emt 0:02:27]} a6 {[%emt 0:02:28]} 16. Be2 {[%emt 0:01:28]} Ng6 {[%emt 0:06:43]} 17. Qc5 {[%emt 0:02:51]} Qe7 {[%emt 0:02:47]} 18. Qe3 {[%emt 0:01:43]} Nf4 {[%emt 0:00:32]} 19. Nh4 {[%emt 0:02:01]} Qf7 {[%emt 0:02:51]} 20. Ng2 {[%emt 0:02:17]} Nxg2 {[%emt 0:01:10]} 21. Rxg2 {[%emt 0:00:05]} Rxd1+ {[%emt 0:00:57]} 22. Bxd1 {[%emt 0:00:23]} g5 {[%emt 0:04:54]} 23. Rh2 {[%emt 0:05:48]} Kf8 {[%emt 0:08:34]} 24. h4 {[%emt 0:03:01]} Qg7 {[%emt 0:01:23]} 25. f3 {[%emt 0:04:46]} 1/2-1/2

[Event "NED-ch U20 Girls 2018"]
[Site "Assen"]
[Date "2018.05.05"]
[Round "7"]
[White "Waardenburg, Marlinde"]
[Black "Monteny, Pascalle"]
[Result "1/2-1/2"]
[ECO "C97"]
[WhiteElo "1686"]
[BlackElo "1446"]
[Annotator "NA"]
[PlyCount "125"]
[EventDate "2018.??.??"]
[EventType "swiss"]
[EventCountry "NED"]
[SourceTitle "playchess.com"]
[Source "ChessBase"]
[SourceQuality "1"]
[TimeControl "5400+30"]

1. e4 {[%emt 0:00:00]} e5 {[%emt 0:00:06]} 2. Nf3 {[%emt 0:00:00]} Nc6 {[%emt 0:00:05]} 3. Bb5 {[%emt 0:00:00]} a6 {[%emt 0:00:06]} 4. Ba4 {[%emt 0:00:00]} Nf6 {[%emt 0:00:07]} 5. O-O {[%emt 0:00:09]} Be7 {[%emt 0:00:12]} 6. Re1 {[%emt 0:00:52]} b5 {[%emt 0:00:27]} 7. Bb3 {[%emt 0:00:24]} d6 {[%emt 0:00:40]} 8. c3 {[%emt 0:00:57]} O-O {[%emt 0:03:14]} 9. h3 {[%emt 0:01:29]} Na5 {[%emt 0:01:58]} 10. Bc2 {[%emt 0:02:56]} c5 {[%emt 0:02:11]} 11. d4 {[%emt 0:04:07]} Nd7 {[%emt 0:03:35]} 12. Nbd2 {[%emt 0:07:11]} Bf6 {[%emt 0:06:41]} 13. Nf1 {[%emt 0:04:21]} Qc7 {[%emt 0:12:23]} 14. Ne3 {[%emt 0:08:39]} Nb6 {[%emt 0:04:07]} 15. dxe5 {[%emt 0:19:00]} dxe5 {[%emt 0:02:25]} 16. Nh2 {[%emt 0:01:25]} Be6 {[%emt 0:11:03]} 17. Qf3 {[%emt 0:02:58]} Bd8 {[%emt 0:17:02]} 18. Nf5 {[%emt 0:06:41]} Bxf5 {[%emt 0:06:14]} 19. exf5 {[%emt 0:02:38]} f6 {[%emt 0:05:24]} 20. h4 {[%emt 0:06:18]} Kh8 {[%emt 0:05:33]} 21. h5 {[%emt 0:01:31]} h6 {[%emt 0:03:44]} 22. Qg4 {[%emt 0:01:57]} Rc8 {[%emt 0:07:30]} 23. Nf3 {[%emt 0:00:56]} Nc6 {[%emt 0:01:35]} 24. Nh4 {[%emt 0:02:12]} Ne7 {[%emt 0:00:53]} 25. Re3 {[%emt 0:02:23]} Rg8 {[%emt 0:02:54]} 26. Rg3 {[%emt 0:02:07]} Qd7 {[%emt 0:01:12]} 27. Be3 {[%emt 0:09:22]} Nbd5 {[%emt 0:01:26]} 28. Rd1 {[%emt 0:01:55]} Nxe3 {[%emt 0:00:46]} 29. Rxe3 {[%emt 0:00:53]} Qe8 {[%emt 0:00:31]} 30. Be4 {[%emt 0:01:05]} Bb6 {[%emt 0:00:43]} 31. Red3 {[%emt 0:02:41]} Rd8 {[%emt 0:00:31]} 32. Rd6 {[%emt 0:04:33]} Rxd6 {[%emt 0:00:30]} 33. Rxd6 {[%emt 0:00:16]} Bc7 {[%emt 0:00:24]} 34. Rxa6 {[%emt 0:01:54]} Kh7 {[%emt 0:00:34]} 35. Ra8 {[%emt 0:01:25]} Qf7 {[%emt 0:00:37]} 36. Ra7 {[%emt 0:00:47]} Rc8 {[%emt 0:00:24]} 37. Qf3 {[%emt 0:00:34]} Qe8 {[%emt 0:00:34]} 38. Bb7 {[%emt 0:00:40]} Rd8 {[%emt 0:00:28]} 39. Be4 {[%emt 0:00:39]} Qd7 {[%emt 0:00:27]} 40. Kh2 {[%emt 0:00:25]} Qd6 {[%emt 0:00:32]} 41. Rb7 {[%emt 0:00:00]} Qd7 {[%emt 0:00:00]} 42. Qe2 {[%emt 0:00:00]} Rb8 {[%emt 0:00:00]} 43. Rxb8 {[%emt 0:00:00]} Bxb8 {[%emt 0:00:00]} 44. Kg1 {[%emt 0:00:00]} Kg8 {[%emt 0:00:00]} 45. b3 {[%emt 0:00:00]} Kf8 {[%emt 0:00:00]} 46. g4 {[%emt 0:00:00]} Bc7 {[%emt 0:00:00]} 47. Nf3 {[%emt 0:00:00]} Ba5 {[%emt 0:00:00]} 48. c4 {[%emt 0:00:00]} b4 {[%emt 0:00:00]} 49. Qc2 {[%emt 0:00:00]} Bc7 {[%emt 0:01:40]} 50. Qc1 {[%emt 0:00:00]} Ba5 {[%emt 0:01:46]} 51. Kf1 {[%emt 0:00:00]} Qd6 {[%emt 0:01:05]} 52. Ke2 {[%emt 0:00:00]} Ke8 {[%emt 0:00:50]} 53. a3 {[%emt 0:00:22]} bxa3 {[%emt 0:01:07]} 54. Qxa3 {[%emt 0:00:14]} Qb6 {[%emt 0:00:39]} 55. Qa2 {[%emt 0:00:58]} Qb4 {[%emt 0:00:25]} 56. Qa4+ {[%emt 0:02:00]} Kd8 {[%emt 0:00:25]} 57. Qxb4 {[%emt 0:00:42]} Bxb4 {[%emt 0:00:08]} 58. Ne1 {[%emt 0:00:15]} Bxe1 {[%emt 0:00:54]} 59. Kxe1 {[%emt 0:00:15]} Kc7 {[%emt 0:00:03]} 60. Kd2 {[%emt 0:00:39]} Kb6 {[%emt 0:00:23]} 61. Kd3 {[%emt 0:00:27]} Ka5 {[%emt 0:00:31]} 62. Kc3 {[%emt 0:00:17]} Nc8 {[%emt 0:00:53]} 63. f3 {[%emt 0:02:27]} 1/2-1/2

[Event "NED-ch U20 Girls 2018"]
[Site "Assen"]
[Date "2018.05.05"]
[Round "7"]
[White "Woest, Imre"]
[Black "Adema, Marrit"]
[Result "0-1"]
[ECO "B22"]
[WhiteElo "1418"]
[BlackElo "1497"]
[Annotator "NA RC"]
[PlyCount "72"]
[EventDate "2018.??.??"]
[EventType "swiss"]
[EventCountry "NED"]
[SourceTitle "playchess.com"]
[Source "ChessBase"]
[SourceQuality "1"]
[TimeControl "5400+30"]

1. e4 {[%emt 0:00:00]} c5 {[%emt 0:02:20]} 2. Nf3 {[%emt 0:00:00]} d6 {[%emt 0:00:12]} 3. c3 {[%emt 0:00:09]} Nc6 {[%emt 0:03:01]} 4. d4 {[%emt 0:01:28]} cxd4 {[%emt 0:02:00]} 5. cxd4 {[%emt 0:00:10]} Bg4 {[%emt 0:01:12]} 6. Bb5 {[%emt 0:03:19]} a6 {[%emt 0:02:22]} 7. Bxc6+ {[%emt 0:04:56]} bxc6 {[%emt 0:00:18]} 8. Nbd2 {[%emt 0:00:34]} e6 {[%emt 0:05:16]} 9. O-O {[%emt 0:02:40]} Ne7 {[%emt 0:07:07]} 10. b3 {[%emt 0:03:28]} d5 {[%emt 0:06:16]} 11. e5 {[%emt 0:05:22]} c5 {[%emt 0:08:10]} 12. dxc5 {[%emt 0:01:50]} Nc6 {[%emt 0:00:30]} 13. h3 {[%emt 0:03:43]} Bxf3 {[%emt 0:00:40]} 14. Nxf3 {[%emt 0:00:07]} Bxc5 {[%emt 0:01:40]} 15. Bg5 {[%emt 0:07:08]} Qb6 {[%emt 0:03:36]} 16. Rc1 {[%emt 0:01:44]} Ba3 {[%emt 0:04:35]} 17. Rc2 {[%emt 0:10:21]} O-O {[%emt 0:01:10]} 18. Be3 {[%emt 0:02:14]} Qb7 {[%emt 0:01:32]} 19. Bc5 {[%emt 0:04:42]} Bxc5 {[%emt 0:03:30]} 20. Rxc5 {[%emt 0:00:08]} Rac8 {[%emt 0:00:43]} 21. Qd2 {[%emt 0:03:17]} Nxe5 {[%emt 0:01:24]} 22. Rxc8 {[%emt 0:03:23]} Nxf3+ {[%emt 0:00:17]} 23. gxf3 {[%emt 0:00:04]} Rxc8 {[%emt 0:00:22]} 24. Rc1 {[%emt 0:04:18]} h6 {[%emt 0:09:32]} 25. f4 {[%emt 0:01:55]} Rxc1+ {[%emt 0:05:20]} 26. Qxc1 {[%emt 0:00:06]} f6 {[%emt 0:01:44]} 27. Qc5 {[%emt 0:02:13]} Kf7 {[%emt 0:02:07]} 28. Qd6 {[%emt 0:01:00]} a5 {[%emt 0:01:48]} 29. Qc5 {[%emt 0:03:04]} Qa8 {[%emt 0:05:03]} 30. Kh2 {[%emt 0:04:48]} Qd8 {[%emt 0:02:02]} 31. b4 {[%emt 0:08:06]} axb4 {[%emt 0:01:47]} 32. Qxb4 {[%emt 0:00:05]} d4 {[%emt 0:04:16]} 33. a4 {[%emt 0:01:59]} d3 {[%emt 0:01:40]} 34. Qd2 {[%emt 0:00:19]} Qd6 {[%emt 0:03:37]} 35. Kg1 {[%emt 0:02:19]} g5 {[%emt 0:03:40]} 36. fxg5 {[%emt 0:00:21]} hxg5 {[%emt 0:00:27]} 0-1